bitfinex/quotes_ETHUSD_20230405
["timestamp","ask_amount","ask_price","bid_price","bid_amount"]
[1680711336754,0.93531741,1890.5,1890.4,0.05553]
[1680711338148,8.16201408,1890.8,1890.3,0.01851]
[1680711338149,0.93531741,1890.4,1890.3,0.01851]
[1680711338344,0.93531741,1890.4,1890.2,0.03703]
[1680711338549,0.93531741,1890.4,1890.3,0.01851]
[1680711338786,0.93179254,1890.4,1890.3,0.05554]
[1680711343387,2.88529179,1890.4,1890.3,0.01851]
[1680711343908,2.88529179,1890.4,1890.3,0.05554]
[1680711344912,2.88529179,1890.4,1890.3,0.01851]
[1680711345908,2.88529179,1890.4,1890.3,0.05554]
[1680711349016,2.88529179,1890.4,1890.3,0.01646066]
[1680711349184,2.88529179,1890.4,1890.2,0.03703]
[1680711349387,2.88529179,1890.4,1890.3,0.01851]
[1680711350020,5.10129179,1890.4,1890.3,0.01851]
[1680711350230,5.10329179,1890.4,1889.8,30.62849935]
[1680711350534,0.93179254,1890.1,1890.0,0.01851]
[1680711351390,0.93179254,1890.1,1889.9,0.03703]
[1680711351591,0.93179254,1890.1,1889.9,0.05554]
[1680711352208,0.93179254,1890.1,1889.9,0.01851]
[1680711353722,0.93179254,1890.1,1889.9,0.05554]
[1680711355198,0.93179254,1890.1,1889.9,0.01851]
[1680711356805,1.02497179,1890.1,1889.9,0.01851]
[1680711356998,1.02497179,1890.1,1889.9,0.05554]
[1680711357200,1.02497179,1890.1,1889.9,0.01851]
[1680711357403,1.02497179,1890.1,1889.8,0.1]
[1680711358037,0.93179254,1889.9,1889.8,0.1]
[1680711358206,1.02497179,1889.9,1889.8,0.1]
[1680711359324,2.14397179,1889.9,1889.8,0.1]
[1680711360130,1.02497179,1889.9,1889.8,0.1]
[1680711360434,0.93179254,1889.9,1889.8,0.11852]
[1680711360738,0.93179254,1889.9,1889.8,0.15556]
[1680711360936,12.97259254,1890.1,1889.8,0.15556]
[1680711361241,0.93179254,1889.9,1889.8,0.15556]
[1680711361448,0.93179254,1889.9,1889.8,0.1]
[1680711361645,0.93179254,1889.9,1888.5,2.30261973]
[1680711361646,0.93179254,1888.7,1888.5,2.30261973]
[1680711361853,0.93179254,1888.8,1888.6,0.01853]
[1680711362010,0.93179254,1888.7,1888.5,0.1]
[1680711362543,2.04979254,1888.7,1888.5,0.23518495]
[1680711362705,2.05879254,1888.7,1888.5,0.23518495]
[1680711362906,2.05879254,1888.7,1888.5,0.1]
[1680711362907,1.118,1888.6,1888.5,0.1]
[1680711363109,1.83187925,1888.6,1888.5,0.1]
[1680711363331,4.4661618,1888.6,1888.5,0.1]
[1680711363503,2.83187925,1888.6,1888.5,0.1]
[1680711363920,1.83187925,1888.6,1888.5,0.311542]
[1680711364115,1.24325054,1888.5,1888.4,0.1]
[1680711364344,2.54543847,1888.5,1888.4,0.1]
[1680711364543,3.54543847,1888.5,1888.4,0.1]
[1680711365044,2.54543847,1888.5,1888.4,0.1]
[1680711365258,0.93179254,1888.5,1888.4,0.1]
[1680711365461,11.6515,1888.7,1888.4,0.13706]
[1680711365662,0.93179254,1888.6,1887.1,2.7400171]
[1680711365867,0.93179254,1888.0,1887.6,0.81017275]
[1680711366053,9.21547,1888.6,1887.6,0.81017275]
[1680711366054,0.93179254,1887.7,1887.6,0.81017275]
[1680711366371,0.93179254,1887.7,1887.3,0.2429213]
[1680711366372,2.238,1887.7,1887.3,0.2429213]
[1680711366524,2.05079254,1887.4,1886.4,4.23345053]
[1680711366725,3.161,1887.5,1886.5,0.26344942]
[1680711367053,0.93179254,1887.6,1886.5,0.11855]
[1680711367256,1.74179254,1887.6,1886.5,3.00374047]
[1680711367448,1.74179254,1887.6,1886.7,1.72409044]
[1680711367628,1.74179254,1887.6,1886.8,0.01854]
[1680711367629,0.93179254,1887.6,1886.8,0.01854]
[1680711367956,0.02251605,1887.5,1886.8,2.93552693]
[1680711368164,0.02251605,1887.5,1886.9,0.66698693]
[1680711368329,0.02251605,1887.5,1887.1,4.45054]
[1680711368529,0.02251605,1887.5,1887.3,0.01854]
[1680711369024,0.02251605,1887.5,1887.3,3.01854]
[1680711369231,0.93179254,1887.6,1887.4,0.23]
[1680711369464,0.93179254,1887.6,1887.4,0.01854]
[1680711369654,0.93179254,1887.6,1887.4,0.28198942]
[1680711369835,0.93179254,1887.6,1887.4,0.01854]
[1680711370043,0.93979254,1887.6,1887.4,0.01854]
[1680711370254,0.93979254,1887.6,1887.4,0.05563]
[1680711370729,0.93979254,1887.6,1887.4,0.14626591]
[1680711370930,0.95430859,1887.6,1887.4,0.05563]
[1680711371157,0.93979254,1887.8,1887.4,0.05563]
[1680711371375,0.93179254,1887.8,1887.5,2.223]
[1680711371671,0.93179254,1887.8,1887.5,0.05562]
[1680711371672,0.02251605,1887.7,1887.5,0.05562]
[1680711371879,0.008,1887.8,1887.5,2.59687]
[1680711372025,0.93179254,1889.0,1888.3,2.2]
[1680711372226,0.93179254,1889.0,1888.6,0.16678]
[1680711372738,0.93179254,1889.0,1888.6,0.05559]
[1680711372941,0.93179254,1889.0,1888.6,2.48559]
[1680711373153,1.02497179,1889.0,1888.6,5.49159]
[1680711373368,0.93179254,1888.8,1888.6,0.06359]
[1680711373670,0.93179254,1888.8,1888.6,0.05559]
[1680711373671,0.95430859,1888.8,1888.6,0.05559]
[1680711373840,0.09543086,1888.7,1888.6,0.05559]
[1680711374644,0.93179254,1888.8,1888.6,0.05559]
[1680711374851,0.93179254,1889.1,1888.6,0.05559]
[1680711375032,11.52021605,1889.2,1888.6,0.05559]
[1680711375254,0.93179254,1888.7,1888.6,0.28559]
[1680711375455,0.93179254,1888.7,1888.6,0.05559]
[1680711376787,0.01,1889.0,1888.6,0.05559]
[1680711377076,11.4977,1889.2,1888.6,0.28559]
[1680711377234,0.002,1889.2,1889.1,5.38888]
[1680711377433,13.48119254,1889.7,1889.1,5.62088]
[1680711377434,0.93179254,1889.6,1889.1,5.62088]
[1680711377672,0.93179254,1889.6,1889.3,2.244]
[1680711377874,0.93179254,1889.6,1889.4,0.619]
[1680711378078,0.93179254,1889.6,1889.4,3.619]
[1680711378237,0.93179254,1889.6,1889.4,0.619]
[1680711378434,0.93179254,1889.6,1889.4,0.389]
[1680711378637,1.02497179,1889.6,1889.4,0.389]
[1680711380136,0.93179254,1889.6,1889.4,0.389]
[1680711380353,0.93679254,1889.9,1889.5,0.23]
[1680711380546,0.04703678,1890.0,1889.6,2.96135]
[1680711380877,0.04703678,1890.0,1889.6,0.72235]
[1680711380878,0.93179254,1889.8,1889.6,0.72235]
[1680711381593,0.93179254,1889.8,1889.7,0.23]
[1680711381885,0.93179254,1889.8,1889.7,0.27781]
[1680711382042,0.95430859,1889.8,1889.7,0.27781]
[1680711382874,0.93179254,1889.8,1889.7,0.27781]
[1680711384194,0.04503678,1890.0,1889.7,2.51581]
[1680711384195,0.03703678,1890.0,1889.7,2.51581]
[1680711384404,0.03703678,1890.0,1889.9,0.16666]
[1680711384693,0.03703678,1890.0,1889.9,0.39666]
[1680711384694,0.96882932,1890.0,1889.9,0.39666]
[1680711385206,1.06571225,1890.0,1889.9,0.16666]
[1680711385353,1.01571225,1890.0,1889.9,0.16666]
[1680711385746,0.09688293,1890.0,1889.8,0.05556]
[1680711386002,0.91882932,1889.6,1889.4,0.22228]
[1680711386303,0.91882932,1889.6,1889.5,0.16671]
[1680711388150,3.55311187,1889.6,1889.5,0.05557]
[1680711388481,1.81629211,1889.6,1889.5,0.05557]
[1680711388794,0.91882932,1889.6,1889.5,0.05557]
[1680711389805,0.02251605,1889.7,1889.5,0.05557]
[1680711390002,12.72472932,1889.9,1889.5,2.29357]
[1680711390155,12.73272932,1889.9,1889.5,0.05557]
[1680711390344,12.73272932,1889.9,1889.5,0.39671]
[1680711390561,0.91882932,1889.7,1889.5,3.39671]
[1680711391180,12.73272932,1889.9,1889.6,3.18262]
[1680711391379,0.92082932,1889.9,1889.7,0.23]
[1680711391591,0.91882932,1889.9,1889.8,1.50014]
[1680711391755,0.91882932,1889.9,1889.8,1.73014]
[1680711392379,0.91882932,1889.9,1889.8,1.50014]
[1680711393265,0.91882932,1889.9,1889.8,0.38892]
[1680711395324,0.51,1890.4,1889.8,0.38892]
[1680711395504,18.3226,1890.5,1890.0,2.225]
[1680711395505,18.3326,1890.5,1890.0,2.225]
[1680711395806,0.91882932,1890.1,1889.9,3.0]
[1680711396115,0.91882932,1890.2,1890.0,1.17443]
[1680711396273,12.512,1890.5,1890.0,3.41243]
[1680711396274,0.91882932,1890.3,1890.0,3.41243]
[1680711396595,0.91882932,1890.3,1890.2,1.49981]
[1680711396804,0.91882932,1890.3,1890.2,0.61882]
[1680711397007,0.91882932,1890.3,1890.2,0.38882]
[1680711397863,3.161,1890.0,1888.6,2.05030404]
[1680711398061,0.47988293,1890.2,1888.1,1.3801502]
[1680711398062,2.238,1889.6,1888.1,1.3801502]
[1680711398381,2.238,1889.6,1888.4,0.002]
[1680711398382,1.91882932,1888.5,1888.4,0.002]
[1680711398580,1.91882932,1888.5,1888.0,0.17383]
[1680711398581,1.91882932,1888.1,1888.0,0.17383]
[1680711398973,1.92682932,1888.1,1888.0,0.06261]
[1680711399191,1.94934537,1888.1,1888.0,0.06261]
[1680711399390,4.18134537,1888.1,1888.0,0.06261]
[1680711399574,4.59947991,1888.1,1888.0,0.06261]
[1680711399899,2.36747991,1888.1,1888.0,0.06261]
[1680711400198,1.92682932,1888.1,1888.0,0.06261]
[1680711401803,2.42682932,1888.1,1888.0,0.06261]
[1680711402923,1.92682932,1888.1,1888.0,0.06261]
[1680711403217,0.02251605,1888.2,1888.0,0.06261]
[1680711403218,0.51526014,1888.2,1888.0,0.06261]
[1680711403514,0.51526014,1888.2,1888.0,0.13561]
[1680711404012,0.51526014,1888.2,1888.1,0.23]
[1680711404180,0.51526014,1888.2,1888.1,0.38927]
[1680711406816,0.51526014,1888.2,1888.1,0.61927]
[1680711407477,0.51526014,1888.4,1888.1,0.61927]
[1680711407678,0.51526014,1888.4,1888.2,0.291927]
[1680711407893,0.51526014,1888.4,1888.3,0.72286]
[1680711408103,0.51526014,1888.4,1888.3,0.95286]
[1680711408418,0.51526014,1888.4,1888.3,0.72286]
[1680711410083,0.51526014,1888.4,1888.3,0.95286]
[1680711410431,0.51526014,1888.4,1888.3,1.15936]
[1680711412491,0.5,1889.0,1888.3,1.15936]
[1680711412828,0.51526014,1888.6,1888.5,0.38916]
[1680711413329,0.02251605,1889.0,1888.5,0.61916]
[1680711413531,0.51526014,1888.9,1888.7,0.94507]
[1680711414441,0.51526014,1888.9,1888.8,0.23]
[1680711414597,0.51526014,1888.9,1888.8,0.39677]
[1680711415746,0.51526014,1889.1,1888.8,0.39677]
[1680711416100,0.51526014,1889.3,1888.8,0.39677]
[1680711416335,34.49056409,1889.7,1888.8,0.39677]
[1680711416336,29.87,1889.7,1888.8,0.514277]
[1680711416641,0.51526014,1889.1,1888.8,0.514277]
[1680711417993,0.51526014,1889.1,1888.8,0.39677]
[1680711418350,3.489,1889.6,1888.8,0.39677]
[1680711418351,0.51526014,1889.4,1888.8,0.39677]
[1680711418673,29.868,1889.7,1888.8,0.39677]
[1680711418674,0.51526014,1889.2,1888.8,0.39677]
[1680711418869,0.51526014,1889.2,1888.8,0.514277]
[1680711419734,32.8488,1889.7,1888.8,0.514277]
[1680711419941,0.02251605,1889.6,1888.8,0.514277]
[1680711420246,0.51526014,1889.2,1888.8,0.514277]
[1680711420449,0.52251605,1889.6,1888.8,0.514277]
[1680711421703,0.51526014,1889.2,1888.8,0.514277]
[1680711422875,0.51526014,1889.2,1888.8,1.626087]
[1680711423082,0.502,1889.8,1888.8,1.626087]
[1680711423083,0.51526014,1889.5,1888.9,1.0]
[1680711423239,0.51526014,1889.5,1889.0,2.38654]
[1680711423650,0.51526014,1889.5,1889.0,5.38654]
[1680711423846,0.51526014,1889.5,1889.0,5.38854]
[1680711425797,0.51526014,1889.5,1889.0,5.65798942]
[1680711426007,0.51179881,1889.5,1889.0,5.65598942]
[1680711426187,0.51179881,1889.5,1889.1,0.56559894]
[1680711426498,0.51179881,1889.5,1889.2,1.73059]
[1680711428191,0.51,1890.1,1889.2,7.10003942]
[1680711428192,0.51179881,1889.9,1889.2,7.10003942]
[1680711428353,0.51179881,1889.9,1889.4,2.0561]
[1680711428569,0.51179881,1889.9,1889.6,1.50028]
[1680711428953,0.51179881,1889.9,1889.8,0.94453]
[1680711429355,0.50179881,1889.9,1889.8,1.17453]
[1680711429595,0.50179881,1889.9,1889.8,4.17453]
[1680711430369,0.50179881,1889.9,1889.8,1.17453]
[1680711432194,0.50179881,1889.9,1889.8,1.703309]
[1680711432394,0.50179881,1890.1,1889.8,4.703309]
[1680711432559,0.50179881,1890.3,1889.9,0.23]
[1680711432759,0.02251605,1890.5,1890.0,0.38886]
[1680711433058,0.50179881,1890.1,1890.0,0.38886]
[1680711433410,0.50179881,1890.1,1890.0,0.61886]
[1680711433910,0.50179881,1890.1,1890.0,0.38886]
[1680711435457,0.50179881,1890.1,1890.0,0.538859]
[1680711435694,0.50179881,1890.2,1890.0,0.538859]
[1680711435854,0.50179881,1890.2,1890.1,0.23]
[1680711436215,0.50179881,1890.2,1890.1,0.95217]
[1680711440725,0.50179881,1890.3,1890.1,0.95217]
[1680711440931,0.50179881,1890.3,1890.1,1.480914]
[1680711441082,0.50179881,1890.3,1890.1,4.480914]
[1680711443118,0.50179881,1890.5,1890.1,4.480914]
[1680711443301,0.50179881,1890.5,1890.1,4.3573191]
[1680711443505,0.50179881,1890.5,1890.2,0.43573191]
[1680711443732,0.50179881,1890.5,1890.3,0.38881]
[1680711445494,0.50179881,1890.5,1890.4,0.23]
[1680711445831,0.50179881,1890.5,1890.4,0.95205]
[1680711448315,0.008,1890.7,1890.4,0.95205]
[1680711448516,0.50179881,1890.6,1890.4,0.95205]
[1680711449054,0.68371982,1890.8,1890.4,1.480763]
[1680711449428,0.68371982,1890.8,1890.4,4.480763]
[1680711449631,0.15054881,1890.6,1890.4,4.480763]
[1680711449855,0.15054881,1890.6,1890.4,3.95205]
[1680711450163,0.15054881,1890.6,1890.4,0.95205]
[1680711450718,0.15054881,1890.7,1890.4,0.95205]
[1680711450918,0.53317101,1890.8,1890.6,0.38875]
[1680711451117,0.53317101,1890.8,1890.7,0.23]
[1680711451426,0.53317101,1890.8,1890.7,2.06262]
[1680711452168,0.11000001,1891.0,1890.7,2.06262]
[1680711452365,0.11000001,1891.0,1890.8,0.206262]
[1680711452672,0.11000001,1891.0,1890.9,1.72926]
[1680711452822,0.11000001,1891.4,1890.9,1.72926]
[1680711453020,0.15054881,1891.2,1890.9,1.99270942]
[1680711453616,0.15054881,1891.2,1890.9,2.51340656]
[1680711454964,0.15054881,1891.2,1891.1,1.17388]
[1680711455550,0.15054881,1891.3,1891.1,1.17388]
[1680711455754,0.15054881,1891.3,1891.2,0.23]
[1680711456060,0.15054881,1891.3,1891.2,0.39656]
[1680711458780,0.15054881,1891.3,1891.2,0.16656]
[1680711460391,0.15054881,1891.3,1891.2,0.39656]
[1680711461253,0.11000001,1891.4,1891.2,0.39656]
[1680711461493,0.11000001,1891.4,1891.3,0.23]
[1680711461670,0.11000001,1891.4,1891.3,0.6186]
[1680711463298,0.11000001,1891.4,1891.3,3.6186]
[1680711463461,0.11000001,1891.4,1891.3,0.6186]
[1680711464490,0.03300001,1891.4,1891.3,0.6186]
[1680711464692,0.11000001,1891.7,1891.3,0.6921988]
[1680711464892,0.11000001,1891.7,1891.3,3.6921988]
[1680711465757,0.11000001,1891.8,1891.3,3.6921988]
[1680711466188,0.11000001,1891.8,1891.4,4.106]
[1680711466389,0.11000001,1891.9,1891.6,3.16391]
[1680711466593,0.11000001,1891.9,1891.8,0.38851]
[1680711466960,0.11000001,1891.9,1891.8,0.61851]
[1680711467161,0.11000001,1891.9,1891.8,0.980361]
[1680711467402,0.03300001,1891.9,1891.8,0.980361]
[1680711468000,0.01980002,1892.0,1891.8,6.374361]
[1680711468172,0.01980002,1892.0,1891.9,3.23]
[1680711468376,0.01980002,1892.0,1891.9,1.3727061]
[1680711468575,0.01980002,1892.0,1891.9,4.3727061]
[1680711468901,0.01980002,1892.0,1891.9,1.3727061]
[1680711471011,0.00594002,1892.0,1891.9,0.95147]
[1680711471308,0.26054882,1892.1,1891.9,0.95147]
[1680711472986,0.26054882,1892.1,1891.9,0.932246]
[1680711473702,0.11000001,1892.3,1891.9,0.932246]
[1680711473887,0.11000001,1892.3,1892.1,2.60818]
[1680711474206,0.13251606,1892.4,1892.1,2.60818]
[1680711474207,0.11000001,1892.4,1892.1,2.60818]
[1680711474504,0.03300001,1892.4,1892.1,2.60818]
[1680711475804,0.03300001,1892.4,1892.1,1.49831]
[1680711477203,0.03300001,1892.4,1892.1,0.38844]
[1680711477407,0.25780001,1892.4,1892.1,0.38844]
[1680711477715,0.28031606,1892.4,1892.1,0.38844]
[1680711477874,0.05551606,1892.4,1892.1,0.38844]
[1680711479017,0.55551606,1892.4,1892.1,0.38844]
[1680711481011,0.05551606,1892.4,1892.1,0.38844]
[1680711481870,1.0,1891.0,1890.9,0.1313397]
[1680711482130,1.0,1891.0,1890.1,0.2242]
[1680711482131,3.229,1891.0,1890.1,0.2242]
[1680711482330,3.229,1890.8,1890.2,0.11109]
[1680711482534,3.229,1890.8,1890.6,0.0264]
[1680711482535,1.0,1890.8,1890.6,0.0264]
[1680711482692,2.333,1890.9,1890.6,0.0264]
[1680711482895,2.214,1890.8,1890.6,0.0264]
[1680711483092,2.229,1890.7,1890.6,0.0264]
[1680711483525,2.229,1890.7,1890.6,0.08193]
[1680711483701,2.214,1890.8,1890.6,0.05553]
[1680711483892,2.214,1890.8,1890.5,0.266846]
[1680711484084,2.25551605,1890.7,1890.5,0.266846]
[1680711484316,2.48106766,1890.7,1890.5,0.266846]
[1680711484589,2.48106766,1890.7,1890.5,0.266856]
[1680711484812,2.25551605,1890.7,1890.5,0.266856]
[1680711485222,2.25551605,1890.7,1890.5,0.211316]
[1680711485711,2.25551605,1890.7,1890.5,0.266856]
[1680711485934,0.02251605,1890.7,1890.5,0.266856]
[1680711486289,0.03051605,1890.7,1890.5,0.211316]
[1680711486527,0.02251605,1890.7,1890.5,0.211316]
[1680711486825,2.56246766,1890.7,1890.5,0.211316]
[1680711487003,2.57046766,1890.7,1890.5,0.211316]
[1680711487402,2.57046766,1890.7,1890.5,0.266856]
[1680711487605,2.57046766,1890.7,1890.6,0.05553]
[1680711487827,2.57046766,1890.7,1890.5,0.266846]
[1680711489120,0.35646766,1890.7,1890.5,0.266846]
[1680711489316,2.214,1890.6,1890.5,0.266846]
[1680711489728,2.57146766,1890.7,1890.5,0.266846]
[1680711489928,0.008,1890.7,1890.5,0.266846]
[1680711490155,0.008,1890.9,1890.5,0.322386]
[1680711491634,0.008,1890.9,1890.5,0.470486]
[1680711491963,0.2821,1890.9,1890.5,0.470486]
[1680711492350,0.2821,1890.9,1890.5,0.322386]
[1680711493072,0.2821,1890.9,1890.5,0.470486]
[1680711493580,0.02251605,1890.8,1890.5,0.470486]
[1680711494583,0.02251605,1890.8,1890.5,0.25917]
[1680711495271,0.2821,1890.9,1890.5,0.25917]
[1680711495272,0.002,1891.1,1890.5,0.25917]
[1680711495474,15.8374,1891.3,1890.8,0.25914]
[1680711495691,2.214,1891.1,1890.8,0.25914]
[1680711495836,2.215,1890.9,1890.8,0.11106]
[1680711496151,2.385,1891.1,1890.8,0.25914]
[1680711496347,0.15,1891.1,1890.8,0.25914]
[1680711496670,3.715,1891.2,1890.8,0.25914]
[1680711496872,3.714,1891.2,1890.8,0.25914]
[1680711497446,2.215,1891.0,1890.8,0.25914]
[1680711497649,2.233,1890.9,1890.8,0.03702]
[1680711497860,2.233,1890.9,1890.8,0.11106]
[1680711497861,2.4545,1890.9,1890.8,0.11106]
[1680711499978,0.2215,1890.9,1890.8,0.11106]
[1680711500274,0.002,1891.1,1890.8,0.11106]
[1680711500483,17.0574,1891.3,1890.8,0.11106]
[1680711500484,17.0514,1891.3,1890.8,0.11106]
[1680711500857,18.0514,1891.3,1890.8,0.11106]
[1680711501055,1.80514,1891.2,1890.8,0.11106]
[1680711502442,10.0944,1891.3,1890.8,0.11106]
[1680711509599,10.1024,1891.3,1890.8,0.11106]
[1680711509802,10.0944,1891.3,1890.8,0.11106]
[1680711510492,0.002,1891.3,1890.8,0.11106]
[1680711510652,0.02251605,1891.4,1891.0,0.62926]
[1680711513252,0.02251605,1891.4,1891.0,0.789224]
[1680711513494,29.862,1891.6,1891.0,0.789224]
[1680711513698,0.98697293,1891.9,1891.1,0.23]
[1680711513997,0.49244513,1891.9,1891.3,4.70034]
[1680711514299,9.9064,1892.2,1891.3,4.70634]
[1680711514300,9.8984,1892.2,1891.3,4.70634]
[1680711514459,0.04100001,1892.4,1891.7,1.36911]
[1680711514660,0.03300001,1892.4,1891.9,0.25897]
[1680711514991,3.50022001,1892.4,1891.9,0.25897]
[1680711516203,0.03300001,1892.4,1891.9,0.25897]
[1680711524190,0.422838,1892.3,1891.9,0.25897]
[1680711535697,0.002,1892.6,1892.0,0.23]
[1680711535844,0.11000001,1892.7,1892.1,2.47859]
[1680711536173,0.11000001,1892.7,1892.2,0.23]
[1680711536490,0.11000001,1892.7,1892.3,0.25893]
[1680711536669,0.11000001,1892.7,1892.4,0.23]
[1680711536876,0.03300001,1892.7,1892.5,2.47818]
[1680711537195,0.03300001,1892.7,1892.5,2.748998]
[1680711541504,0.00990001,1892.7,1892.6,0.34095]
[1680711541727,0.11000001,1893.2,1892.6,0.34095]
[1680711541863,0.11000001,1893.2,1892.6,0.6388498]
[1680711542504,0.11000001,1893.2,1892.6,3.6388498]
[1680711544415,0.11000001,1893.2,1892.6,4.6388498]
[1680711544646,0.11000001,1893.2,1892.6,4.6448498]
[1680711545280,0.11000001,1893.2,1892.6,4.6388498]
[1680711545484,0.11000001,1893.2,1892.7,3.62488498]
[1680711545717,0.11000001,1893.2,1892.8,5.70772]
[1680711545941,0.11000001,1893.2,1892.8,8.87072]
[1680711546128,0.03300001,1893.2,1892.9,3.0]
[1680711546424,0.03300001,1893.2,1893.0,0.78883]
[1680711546981,0.03300001,1893.2,1893.0,0.25883]
[1680711553202,0.03300001,1893.2,1893.1,0.71068]
[1680711554247,0.03300001,1893.2,1893.1,0.48068]
[1680711558300,0.03300001,1893.2,1893.1,0.71068]
[1680711558608,0.11000001,1893.3,1893.1,1.096539]
[1680711558750,0.11000001,1893.3,1893.2,2.33751]
[1680711558953,0.11000001,1893.3,1893.2,5.33751]
[1680711559153,0.11000001,1893.3,1893.2,5.33951]
[1680711559394,0.11000001,1893.3,1893.2,5.9492229]
[1680711559982,0.11000001,1893.8,1893.2,5.9492229]
[1680711561767,0.11000001,1893.8,1893.2,9.1102229]
[1680711567262,0.11000001,1893.8,1893.2,8.8802229]
[1680711568714,0.11000001,1893.8,1893.3,0.23]
[1680711568883,0.11000001,1893.8,1893.4,0.62845]
[1680711569083,0.11000001,1893.8,1893.5,0.23]
[1680711569269,0.11000001,1893.8,1893.6,0.99808]
[1680711569473,0.11000001,1893.8,1893.7,0.23]
[1680711569775,0.11000001,1893.8,1893.7,0.71052]
[1680711570005,0.11000001,1893.8,1893.7,0.870291]
[1680711570508,0.11000001,1893.8,1893.7,0.48052]
[1680711570882,0.11000001,1893.8,1893.7,0.71052]
[1680711578008,0.11000001,1893.8,1893.1,11.78047]
[1680711578213,1.0,1893.5,1893.0,0.07395]
[1680711578446,1.0,1893.1,1892.5,0.006]
[1680711578751,4.0,1893.3,1892.8,0.25886]
[1680711578901,12.29436862,1893.0,1892.8,0.03698]
[1680711579247,10.465,1893.0,1892.8,0.11094]
[1680711579430,11.5115,1893.0,1892.8,0.11094]
[1680711579954,2.63428255,1892.1,1892.0,1.166208]
[1680711580134,2.63428255,1892.1,1891.2,2.84673]
[1680711580135,6.365,1892.3,1891.3,1.37793322]
[1680711580454,6.365,1892.3,1891.2,0.1]
[1680711580455,0.002,1892.3,1892.0,0.11098]
[1680711580601,1.0,1892.4,1892.0,0.11098]
[1680711581157,1.0,1892.2,1891.2,0.1]
[1680711581303,1.0,1892.2,1891.9,0.03699]
[1680711581853,0.02251605,1892.1,1891.9,0.03699]
[1680711582415,0.3502,1892.4,1891.9,0.11098]
[1680711583498,0.3502,1892.4,1891.9,0.25897]
[1680711583915,0.02251605,1892.5,1891.9,0.25897]
[1680711584318,0.02251605,1892.5,1892.0,0.23]
[1680711584547,0.02251605,1892.5,1892.1,0.11097]
[1680711586468,0.02251605,1892.5,1892.1,0.03699]
[1680711586765,0.02251605,1892.5,1891.8,0.037]
[1680711586930,0.02251605,1892.5,1891.8,0.267]
[1680711587362,0.02251605,1892.5,1891.8,0.037]
[1680711589738,10.1885,1892.8,1891.8,0.267]
[1680711590086,12.059765,1892.8,1891.8,0.267]
[1680711591965,10.1885,1892.8,1891.8,1.269]
[1680711592129,0.002,1892.8,1891.8,4.434]
[1680711592488,4.8799,1893.1,1891.9,3.0]
[1680711592628,0.48779,1893.0,1892.2,0.11097]
[1680711592976,0.48779,1893.0,1892.0,0.67798]
[1680711592977,0.48779,1893.0,1892.5,0.03698]
[1680711594170,0.51030605,1893.0,1892.5,0.03698]
[1680711595640,0.48779,1893.0,1892.5,0.03698]
[1680711595838,0.48779,1893.0,1892.5,0.11095]
[1680711602390,0.002,1893.1,1892.6,0.23]
[1680711602688,0.002,1893.2,1892.7,0.6287]
[1680711602889,0.008,1893.6,1893.0,0.25883]
[1680711603090,1.47436,1893.6,1893.0,0.25883]
[1680711603304,1.46936,1893.6,1893.0,0.25883]
[1680711603588,1.47736,1893.6,1893.0,0.25883]
[1680711603752,1.46682048,1893.6,1893.0,0.25883]
[1680711604786,1.46682048,1893.6,1893.1,0.23]
[1680711604982,0.14668205,1893.5,1893.2,0.2588]
[1680711606793,0.14668205,1893.5,1893.2,0.11091]
[1680711607112,0.14668205,1893.5,1892.9,0.006]
[1680711607259,0.14668205,1893.5,1893.0,0.03697]
[1680711607571,0.64668205,1893.5,1893.0,0.11092]
[1680711607778,0.06466821,1893.4,1893.0,0.11092]
[1680711609267,0.02251605,1893.3,1893.0,0.03697]
[1680711609880,6.38751605,1893.3,1892.6,0.07396]
[1680711610081,0.63875161,1893.2,1892.7,0.03698]
[1680711610287,0.52251605,1893.1,1892.7,0.11094]
[1680711612904,3.1567986,1893.1,1892.7,0.1086836]
[1680711613105,8.99928255,1893.0,1892.7,0.0347236]
[1680711613302,0.5,1892.9,1892.7,0.03698]
[1680711613508,1.44992826,1892.9,1892.7,0.03698]
[1680711613868,1.44992826,1892.9,1892.7,0.11094]
[1680711613869,0.94992826,1892.9,1892.7,0.11094]
[1680711614173,4.14100677,1893.1,1892.7,0.11094]
[1680711614798,2.63428255,1893.0,1892.7,0.03698]
[1680711615471,0.5,1892.9,1892.6,0.03698]
[1680711615699,0.76342826,1892.9,1892.6,0.03698]
[1680711615899,0.76342826,1892.9,1892.5,0.03698]
[1680711616102,5.87162538,1892.8,1892.5,0.03698]
[1680711616305,0.5,1892.7,1892.4,0.11095]
[1680711616501,3.13428255,1892.7,1892.4,0.07397]
[1680711616703,0.02251605,1892.6,1892.3,0.03699]
[1680711617290,0.02251605,1892.6,1892.3,0.11097]
[1680711617491,0.46558216,1892.6,1892.3,0.11097]
[1680711622531,0.44306611,1892.6,1892.3,0.11097]
[1680711624792,11.12086254,1892.7,1892.3,0.11097]
[1680711624793,1.27586254,1892.7,1892.3,0.11097]
[1680711624993,10.2525,1893.0,1892.3,0.11097]
[1680711625337,10.2545,1893.0,1892.3,0.11097]
[1680711625734,10.27701605,1893.0,1892.3,0.11097]
[1680711625943,1.02770161,1892.9,1892.3,0.11097]
[1680711626141,1.52770161,1892.9,1892.3,0.11097]
[1680711627174,1.02770161,1892.9,1892.3,0.11097]
[1680711628878,1.52770161,1892.9,1892.3,0.11097]
[1680711629796,1.55021766,1892.9,1892.3,0.11097]
[1680711629983,0.15502177,1892.8,1892.3,0.11097]
[1680711634327,0.002,1893.0,1892.4,0.23]
[1680711634496,0.002,1893.1,1892.5,2.47807]
[1680711634702,29.862,1893.4,1892.6,0.23]
[1680711635018,29.862,1893.4,1892.8,1.36829]
[1680711635336,0.002,1893.4,1892.8,1.36829]
[1680711635498,10.1681,1893.5,1892.8,1.36829]
[1680711635667,1.01681,1893.4,1892.8,1.36829]
[1680711635868,0.002,1893.5,1892.9,0.23]